[Event "Titled Tuesday Blitz April 25 Early 2023"]
[White "HSH1987"]
[Black "Real_taiatai"]
[WhiteElo "2692"]
[BlackElo "2359"]
[Result "1-0"]
[Round "02"]
[TimeControl "180+2"]
[Date "2023.04.25"]
[WhiteClock "0:00:30"]
[BlackClock "0:00:10"]

1. Nf3 {[%clk 0:03:00]}  Nf6 {[%clk 0:02:55]} 2. g3 {[%clk 0:02:59]}  d5 {[%clk 0:02:53]} 3. Bg2 {[%clk 0:03:00]}  Bg4 {[%clk 0:02:53]} 4. O-O {[%clk 0:03:01]}  c6 {[%clk 0:02:53]} 5. b3 {[%clk 0:03:01]}  Nbd7 {[%clk 0:02:53]} 6. Bb2 {[%clk 0:03:01]}  e6 {[%clk 0:02:51]} 7. d4 {[%clk 0:03:00]}  h6 {[%clk 0:02:51]} 8. Nbd2 {[%clk 0:03:00]}  Be7 {[%clk 0:02:48]} 9. Re1 {[%clk 0:02:58]}  O-O {[%clk 0:02:48]} 10. e4 {[%clk 0:02:58]}  dxe4 {[%clk 0:02:46]} 11. Nxe4 {[%clk 0:02:59]}  Nxe4 {[%clk 0:02:46]} 12. Rxe4 {[%clk 0:03:00]}  Bf5 {[%clk 0:02:46]} 13. Re1 {[%clk 0:03:00]}  Nf6 {[%clk 0:02:41]} 14. c4 {[%clk 0:02:57]}  a5 {[%clk 0:02:40]} 15. a3 {[%clk 0:02:56]}  Qb6 {[%clk 0:02:34]} 16. c5 {[%clk 0:02:37]}  Qa6 {[%clk 0:02:30]} 17. Ne5 {[%clk 0:02:32]}  Rfd8 {[%clk 0:02:20]} 18. Qc1 {[%clk 0:02:20]}  Nd5 {[%clk 0:02:16]} 19. Qc4 {[%clk 0:02:18]}  Bf6 {[%clk 0:01:57]} 20. Bf1 {[%clk 0:02:12]}  Qxc4 {[%clk 0:01:47]} 21. bxc4 {[%clk 0:02:10]}  Ne7 {[%clk 0:01:34]} 22. f4 {[%clk 0:01:59]}  Bxe5 {[%clk 0:01:21]} 23. fxe5 {[%clk 0:01:59]}  Rd7 {[%clk 0:01:12]} 24. Kf2 {[%clk 0:01:59]}  Rad8 {[%clk 0:01:11]} 25. Ke3 {[%clk 0:01:58]}  Bg4 {[%clk 0:01:10]} 26. Bd3 {[%clk 0:01:57]}  Bf5 {[%clk 0:01:07]} 27. Be2 {[%clk 0:01:54]}  Bg6 {[%clk 0:01:05]} 28. g4 {[%clk 0:01:54]}  h5 {[%clk 0:01:02]} 29. h3 {[%clk 0:01:54]}  hxg4 {[%clk 0:00:52]} 30. hxg4 {[%clk 0:01:55]}  f6 {[%clk 0:00:51]} 31. exf6 {[%clk 0:01:53]}  gxf6 {[%clk 0:00:52]} 32. Bc3 {[%clk 0:01:44]}  Kf7 {[%clk 0:00:50]} 33. Bxa5 {[%clk 0:01:42]}  Rh8 {[%clk 0:00:41]} 34. Rh1 {[%clk 0:01:40]}  Rxh1 {[%clk 0:00:36]} 35. Rxh1 {[%clk 0:01:41]}  f5 {[%clk 0:00:19]} 36. Rh8 {[%clk 0:01:27]}  fxg4 {[%clk 0:00:19]} 37. Bxg4 {[%clk 0:01:27]}  Nf5+ {[%clk 0:00:20]} 38. Bxf5 {[%clk 0:01:27]}  Bxf5 {[%clk 0:00:21]} 39. Be1 {[%clk 0:01:15]}  Kg6 {[%clk 0:00:21]} 40. Rb8 {[%clk 0:01:08]}  Rh7 {[%clk 0:00:21]} 41. Bg3 {[%clk 0:01:07]}  Kg5 {[%clk 0:00:20]} 42. a4 {[%clk 0:01:04]}  Rh3 {[%clk 0:00:19]} 43. Kf2 {[%clk 0:01:04]}  Rh7 {[%clk 0:00:18]} 44. Rg8+ {[%clk 0:01:01]}  Kf6 {[%clk 0:00:18]} 45. Be5+ {[%clk 0:01:00]}  Kf7 {[%clk 0:00:18]} 46. Rb8 {[%clk 0:01:00]}  Kg6 {[%clk 0:00:19]} 47. Ke3 {[%clk 0:00:55]}  Bc2 {[%clk 0:00:19]} 48. a5 {[%clk 0:00:55]}  Rh3+ {[%clk 0:00:20]} 49. Kd2 {[%clk 0:00:54]}  Bb3 {[%clk 0:00:17]} 50. Rxb7 {[%clk 0:00:54]}  Bxc4 {[%clk 0:00:17]} 51. Rb6 {[%clk 0:00:41]}  Ra3 {[%clk 0:00:12]} 52. Rxc6 {[%clk 0:00:39]}  Rxa5 {[%clk 0:00:13]} 53. Rd6 {[%clk 0:00:35]}  Kf5 {[%clk 0:00:12]} 54. c6 {[%clk 0:00:33]}  Ra8 {[%clk 0:00:11]} 55. c7 {[%clk 0:00:32]}  Rc8 {[%clk 0:00:12]} 56. Rd8 {[%clk 0:00:31]}  Ba6 {[%clk 0:00:12]} 57. Kc3 {[%clk 0:00:31]}  Ke4 {[%clk 0:00:10]} 58. Kb4 {[%clk 0:00:32]}  Bb7 {[%clk 0:00:10]} 59. Kc5 {[%clk 0:00:30]} 1-0


[Site "https://www.chess.com"]

[Event "Titled Tuesday Blitz April 25 Early 2023"]
[White "Shuvalova, Polina"]
[Black "Zaichenko, Daria"]
[WhiteFideId "24171760"]
[BlackFideId "4197453"]
[WhiteElo "2281"]
[BlackElo "2039"]
[Result "1-0"]
[Round "02"]
[TimeControl "180+2"]
[Date "2023.04.25"]
[WhiteClock "0:01:13"]
[BlackClock "0:00:22"]

1. Nf3 {[%clk 0:02:58]}  Nf6 {[%clk 0:02:59]} 2. g3 {[%clk 0:02:57]}  d5 {[%clk 0:02:59]} 3. Bg2 {[%clk 0:02:58]}  e6 {[%clk 0:02:59]} 4. d4 {[%clk 0:02:58]}  Be7 {[%clk 0:02:59]} 5. O-O {[%clk 0:02:59]}  O-O {[%clk 0:02:59]} 6. b3 {[%clk 0:02:58]}  c5 {[%clk 0:02:59]} 7. Bb2 {[%clk 0:02:59]}  Nc6 {[%clk 0:02:59]} 8. e3 {[%clk 0:02:57]}  Ne4 {[%clk 0:02:56]} 9. Nbd2 {[%clk 0:02:56]}  f5 {[%clk 0:02:54]} 10. dxc5 {[%clk 0:02:49]}  Bxc5 {[%clk 0:02:53]} 11. Qe2 {[%clk 0:02:48]}  a6 {[%clk 0:02:52]} 12. Rad1 {[%clk 0:02:45]}  b5 {[%clk 0:02:44]} 13. c4 {[%clk 0:02:34]}  bxc4 {[%clk 0:02:43]} 14. bxc4 {[%clk 0:02:26]}  Qb6 {[%clk 0:02:34]} 15. Nb3 {[%clk 0:02:24]}  dxc4 {[%clk 0:02:25]} 16. Qxc4 {[%clk 0:02:17]}  a5 {[%clk 0:02:24]} 17. Nxc5 {[%clk 0:02:01]}  Nxc5 {[%clk 0:02:16]} 18. Rb1 {[%clk 0:01:53]}  Qb4 {[%clk 0:02:07]} 19. Rfc1 {[%clk 0:01:50]}  Qxc4 {[%clk 0:01:10]} 20. Rxc4 {[%clk 0:01:49]}  Rb8 {[%clk 0:00:58]} 21. Rxc5 {[%clk 0:01:45]}  Nb4 {[%clk 0:00:58]} 22. Be5 {[%clk 0:01:38]}  Rb7 {[%clk 0:00:56]} 23. a3 {[%clk 0:01:35]}  Nd3 {[%clk 0:00:55]} 24. Rxb7 {[%clk 0:01:36]}  Bxb7 {[%clk 0:00:50]} 25. Rc7 {[%clk 0:01:23]}  Bxf3 {[%clk 0:00:39]} 26. Rxg7+ {[%clk 0:01:23]}  Kh8 {[%clk 0:00:40]} 27. Rf7+ {[%clk 0:01:23]}  Kg8 {[%clk 0:00:40]} 28. Rxf8+ {[%clk 0:01:24]}  Kxf8 {[%clk 0:00:39]} 29. Bd6+ {[%clk 0:01:24]}  Ke8 {[%clk 0:00:40]} 30. Bxf3 {[%clk 0:01:25]}  Kd7 {[%clk 0:00:38]} 31. Bf8 {[%clk 0:01:23]}  e5 {[%clk 0:00:31]} 32. Be2 {[%clk 0:01:19]}  Nb2 {[%clk 0:00:27]} 33. f4 {[%clk 0:01:15]}  exf4 {[%clk 0:00:24]} 34. exf4 {[%clk 0:01:15]}  Na4 {[%clk 0:00:24]} 35. Kf2 {[%clk 0:01:14]}  Nb6 {[%clk 0:00:23]} 36. Bc5 {[%clk 0:01:13]}  Nd5 {[%clk 0:00:22]} 37. Bb5+ {[%clk 0:01:13]}  Ke6 {[%clk 0:00:22]} 38. Bc4 {[%clk 0:01:13]} 1-0


[Site "https://www.chess.com"]

[Event "Titled Tuesday Blitz April 25 Early 2023"]
[White "Bashirli, Nail"]
[Black "ilya2700"]
[WhiteFideId "13406809"]
[WhiteElo "2322"]
[BlackElo "2290"]
[Result "1-0"]
[Round "02"]
[TimeControl "180+2"]
[Date "2023.04.25"]
[WhiteClock "0:00:54"]
[BlackClock "0:01:07"]

1. e4 {[%clk 0:03:00]}  c5 {[%clk 0:03:00]} 2. Nf3 {[%clk 0:02:59]}  e6 {[%clk 0:03:00]} 3. d4 {[%clk 0:02:59]}  cxd4 {[%clk 0:03:01]} 4. Nxd4 {[%clk 0:02:59]}  Nf6 {[%clk 0:03:02]} 5. Nc3 {[%clk 0:03:00]}  Nc6 {[%clk 0:03:02]} 6. Be3 {[%clk 0:02:57]}  Bb4 {[%clk 0:03:02]} 7. Nxc6 {[%clk 0:02:55]}  bxc6 {[%clk 0:03:03]} 8. Bd3 {[%clk 0:02:56]}  d5 {[%clk 0:03:02]} 9. e5 {[%clk 0:02:54]}  Nd7 {[%clk 0:03:01]} 10. Qg4 {[%clk 0:02:53]}  Bxc3+ {[%clk 0:02:36]} 11. bxc3 {[%clk 0:02:51]}  g6 {[%clk 0:02:37]} 12. f4 {[%clk 0:02:27]}  Qa5 {[%clk 0:02:35]} 13. Bd2 {[%clk 0:02:20]}  Nc5 {[%clk 0:02:18]} 14. O-O {[%clk 0:02:18]}  Ba6 {[%clk 0:02:15]} 15. c4 {[%clk 0:02:15]}  Qxd2 {[%clk 0:02:13]} 16. Rad1 {[%clk 0:02:08]}  Qa5 {[%clk 0:02:08]} 17. f5 {[%clk 0:02:04]}  Nxd3 {[%clk 0:02:00]} 18. Rxd3 {[%clk 0:01:47]}  gxf5 {[%clk 0:01:51]} 19. Qg7 {[%clk 0:01:44]}  Rf8 {[%clk 0:01:50]} 20. Rb1 {[%clk 0:01:38]}  Bxc4 {[%clk 0:01:45]} 21. Rh3 {[%clk 0:01:25]}  Qxa2 {[%clk 0:01:44]} 22. Rb7 {[%clk 0:01:12]}  Qa1+ {[%clk 0:01:36]} 23. Kf2 {[%clk 0:01:12]}  Qf1+ {[%clk 0:01:36]} 24. Ke3 {[%clk 0:01:11]}  Qe2+ {[%clk 0:01:31]} 25. Kf4 {[%clk 0:01:04]}  Qe4+ {[%clk 0:01:20]} 26. Kg5 {[%clk 0:01:04]}  O-O-O {[%clk 0:01:20]} 27. Rxf7 {[%clk 0:00:52]}  Rg8 {[%clk 0:01:20]} 28. Rc7+ {[%clk 0:00:52]}  Kb8 {[%clk 0:01:16]} 29. Rb7+ {[%clk 0:00:52]}  Kc8 {[%clk 0:01:17]} 30. Rc7+ {[%clk 0:00:52]}  Kb8 {[%clk 0:01:17]} 31. Rb7+ {[%clk 0:00:52]}  Ka8 {[%clk 0:01:17]} 32. Rxa7+ {[%clk 0:00:52]}  Kb8 {[%clk 0:01:17]} 33. Rb7+ {[%clk 0:00:53]}  Kc8 {[%clk 0:01:18]} 34. Rc7+ {[%clk 0:00:53]}  Kb8 {[%clk 0:01:19]} 35. Rb7+ {[%clk 0:00:53]}  Ka8 {[%clk 0:01:19]} 36. Ra3+ {[%clk 0:00:53]}  Ba6 {[%clk 0:01:07]} 37. Rxa6# {[%clk 0:00:54]} 1-0


[Site "https://www.chess.com"]

[Event "Titled Tuesday Blitz April 25 Early 2023"]
[White "De Silva, L M S T"]
[Black "Grossboss19"]
[WhiteFideId "9953698"]
[WhiteElo "2404"]
[BlackElo "2278"]
[Result "1-0"]
[Round "02"]
[TimeControl "180+2"]
[Date "2023.04.25"]
[WhiteClock "0:00:47"]
[BlackClock "0:00:09"]

1. c4 {[%clk 0:03:00]}  c5 {[%clk 0:02:56]} 2. Nc3 {[%clk 0:03:00]}  Nc6 {[%clk 0:02:56]} 3. Nf3 {[%clk 0:03:00]}  g6 {[%clk 0:02:55]} 4. b3 {[%clk 0:03:00]}  Bg7 {[%clk 0:02:55]} 5. Bb2 {[%clk 0:03:01]}  e6 {[%clk 0:02:53]} 6. e3 {[%clk 0:03:01]}  Nge7 {[%clk 0:02:51]} 7. d4 {[%clk 0:03:00]}  cxd4 {[%clk 0:02:51]} 8. Nb5 {[%clk 0:03:01]}  O-O {[%clk 0:02:44]} 9. Nbxd4 {[%clk 0:02:57]}  d5 {[%clk 0:02:42]} 10. Be2 {[%clk 0:02:56]}  Qa5+ {[%clk 0:02:32]} 11. Qd2 {[%clk 0:02:55]}  Qxd2+ {[%clk 0:02:31]} 12. Kxd2 {[%clk 0:02:56]}  dxc4 {[%clk 0:02:26]} 13. Bxc4 {[%clk 0:02:53]}  Rd8 {[%clk 0:02:18]} 14. Ke2 {[%clk 0:02:50]}  e5 {[%clk 0:02:09]} 15. Nxc6 {[%clk 0:02:40]}  Nxc6 {[%clk 0:02:08]} 16. Ng5 {[%clk 0:02:40]}  Rd7 {[%clk 0:01:47]} 17. Rad1 {[%clk 0:02:38]}  Rc7 {[%clk 0:01:40]} 18. b4 {[%clk 0:02:07]}  a6 {[%clk 0:01:24]} 19. a4 {[%clk 0:02:07]}  h6 {[%clk 0:01:01]} 20. Nxf7 {[%clk 0:02:01]}  Rxf7 {[%clk 0:01:00]} 21. b5 {[%clk 0:02:02]}  axb5 {[%clk 0:01:01]} 22. axb5 {[%clk 0:02:03]}  Ne7 {[%clk 0:00:39]} 23. Rd8+ {[%clk 0:01:57]}  Bf8 {[%clk 0:00:38]} 24. f3 {[%clk 0:01:27]}  b6 {[%clk 0:00:19]} 25. Rhd1 {[%clk 0:01:12]}  Bb7 {[%clk 0:00:19]} 26. Rxa8 {[%clk 0:01:08]}  Bxa8 {[%clk 0:00:20]} 27. Rd8 {[%clk 0:01:00]}  Bb7 {[%clk 0:00:17]} 28. Bxe5 {[%clk 0:00:55]}  Bc8 {[%clk 0:00:14]} 29. Bd6 {[%clk 0:00:48]}  Kg7 {[%clk 0:00:09]} 30. Bxf7 {[%clk 0:00:47]} 1-0


[Site "https://www.chess.com"]

[Event "Titled Tuesday Blitz April 25 Early 2023"]
[White "Smith, Garrett L"]
[Black "Bronstein, Or"]
[WhiteFideId "2024829"]
[BlackFideId "2815770"]
[WhiteElo "2259"]
[BlackElo "2356"]
[Result "0-1"]
[Round "02"]
[TimeControl "180+2"]
[Date "2023.04.25"]
[WhiteClock "0:01:13"]
[BlackClock "0:00:58"]

1. e4 {[%clk 0:03:00]}  c5 {[%clk 0:02:56]} 2. a3 {[%clk 0:02:58]}  d5 {[%clk 0:02:54]} 3. exd5 {[%clk 0:02:58]}  Qxd5 {[%clk 0:02:53]} 4. Nc3 {[%clk 0:02:59]}  Qd8 {[%clk 0:02:52]} 5. Bc4 {[%clk 0:02:59]}  Nc6 {[%clk 0:02:51]} 6. d3 {[%clk 0:02:56]}  Nf6 {[%clk 0:02:45]} 7. h3 {[%clk 0:02:53]}  e6 {[%clk 0:02:37]} 8. Nf3 {[%clk 0:02:53]}  Be7 {[%clk 0:02:38]} 9. O-O {[%clk 0:02:52]}  O-O {[%clk 0:02:38]} 10. Bf4 {[%clk 0:02:49]}  b6 {[%clk 0:02:37]} 11. Re1 {[%clk 0:02:22]}  Bb7 {[%clk 0:02:36]} 12. Ng5 {[%clk 0:02:18]}  Nd4 {[%clk 0:02:31]} 13. Nce4 {[%clk 0:02:13]}  Nd5 {[%clk 0:02:20]} 14. Bd2 {[%clk 0:02:06]}  h6 {[%clk 0:02:09]} 15. Nf3 {[%clk 0:02:03]}  Re8 {[%clk 0:01:34]} 16. c3 {[%clk 0:01:55]}  Nc6 {[%clk 0:01:26]} 17. a4 {[%clk 0:01:43]}  Qc7 {[%clk 0:01:22]} 18. Qc2 {[%clk 0:01:33]}  Red8 {[%clk 0:01:18]} 19. Rad1 {[%clk 0:01:29]}  Rac8 {[%clk 0:01:16]} 20. Qb1 {[%clk 0:01:24]}  Na5 {[%clk 0:01:13]} 21. Ba2 {[%clk 0:01:22]}  c4 {[%clk 0:01:13]} 22. d4 {[%clk 0:01:20]}  Bc6 {[%clk 0:01:10]} 23. Qc2 {[%clk 0:01:18]}  Qd7 {[%clk 0:01:01]} 24. b3 {[%clk 0:01:13]}  cxb3 {[%clk 0:01:01]} 25. Bxb3 {[%clk 0:01:13]}  Nxb3 {[%clk 0:00:58]} 0-1


[Site "https://www.chess.com"]

[Event "Titled Tuesday Blitz April 25 Early 2023"]
[White "Skvortsov, Andrei"]
[Black "Chakravarthi Reddy, M"]
[WhiteFideId "24108600"]
[BlackFideId "25009532"]
[WhiteElo "2259"]
[BlackElo "2201"]
[Result "1-0"]
[Round "02"]
[TimeControl "180+2"]
[Date "2023.04.25"]
[WhiteClock "0:00:18"]
[BlackClock "0:00:04"]

1. e4 {[%clk 0:03:00]}  c5 {[%clk 0:02:57]} 2. Ne2 {[%clk 0:03:00]}  d6 {[%clk 0:02:54]} 3. g3 {[%clk 0:03:00]}  Nf6 {[%clk 0:02:52]} 4. Bg2 {[%clk 0:03:00]}  h5 {[%clk 0:02:51]} 5. h3 {[%clk 0:02:59]}  Nc6 {[%clk 0:02:50]} 6. c3 {[%clk 0:02:59]}  Bd7 {[%clk 0:02:50]} 7. d4 {[%clk 0:02:59]}  cxd4 {[%clk 0:02:50]} 8. cxd4 {[%clk 0:03:00]}  Rc8 {[%clk 0:02:46]} 9. Nbc3 {[%clk 0:02:59]}  a6 {[%clk 0:02:45]} 10. f4 {[%clk 0:02:59]}  e5 {[%clk 0:02:43]} 11. fxe5 {[%clk 0:02:55]}  dxe5 {[%clk 0:02:39]} 12. d5 {[%clk 0:02:55]}  Nd4 {[%clk 0:02:37]} 13. Nxd4 {[%clk 0:02:50]}  exd4 {[%clk 0:02:37]} 14. Qxd4 {[%clk 0:02:50]}  Bc5 {[%clk 0:02:37]} 15. Qe5+ {[%clk 0:02:49]}  Kf8 {[%clk 0:02:26]} 16. Qf4 {[%clk 0:02:41]}  Qb6 {[%clk 0:01:51]} 17. e5 {[%clk 0:02:37]}  Re8 {[%clk 0:01:51]} 18. Kd1 {[%clk 0:02:27]}  Nh7 {[%clk 0:01:24]} 19. e6 {[%clk 0:02:25]}  Bxe6 {[%clk 0:01:24]} 20. dxe6 {[%clk 0:02:24]}  Rxe6 {[%clk 0:01:17]} 21. Rf1 {[%clk 0:02:04]}  Nf6 {[%clk 0:01:11]} 22. Kc2 {[%clk 0:01:50]}  Bd6 {[%clk 0:00:56]} 23. Qc4 {[%clk 0:01:44]}  Bxg3 {[%clk 0:00:51]} 24. Bf4 {[%clk 0:01:31]}  Bxf4 {[%clk 0:00:46]} 25. Rxf4 {[%clk 0:01:19]}  Ke7 {[%clk 0:00:46]} 26. Rd1 {[%clk 0:01:11]}  g5 {[%clk 0:00:35]} 27. Qb4+ {[%clk 0:01:05]}  Qxb4 {[%clk 0:00:34]} 28. Rxb4 {[%clk 0:01:06]}  b5 {[%clk 0:00:33]} 29. Rbd4 {[%clk 0:01:00]}  Rc8 {[%clk 0:00:32]} 30. a4 {[%clk 0:00:58]}  g4 {[%clk 0:00:19]} 31. Kb3 {[%clk 0:00:52]}  bxa4+ {[%clk 0:00:16]} 32. Ka3 {[%clk 0:00:47]}  Re3 {[%clk 0:00:11]} 33. hxg4 {[%clk 0:00:43]}  Nxg4 {[%clk 0:00:11]} 34. Bb7 {[%clk 0:00:39]}  Rc7 {[%clk 0:00:10]} 35. Bxa6 {[%clk 0:00:33]}  Ne5 {[%clk 0:00:10]} 36. Ka2 {[%clk 0:00:31]}  Rcxc3 {[%clk 0:00:06]} 37. bxc3 {[%clk 0:00:31]}  Rxc3 {[%clk 0:00:07]} 38. Rxa4 {[%clk 0:00:25]}  Rc2+ {[%clk 0:00:05]} 39. Kb3 {[%clk 0:00:25]}  Rg2 {[%clk 0:00:05]} 40. Re1 {[%clk 0:00:22]}  f6 {[%clk 0:00:05]} 41. Bb7 {[%clk 0:00:23]}  Rg3+ {[%clk 0:00:04]} 42. Kc2 {[%clk 0:00:23]}  Kd6 {[%clk 0:00:04]} 43. Be4 {[%clk 0:00:21]}  h4 {[%clk 0:00:04]} 44. Ra6+ {[%clk 0:00:19]}  Ke7 {[%clk 0:00:04]} 45. Rb1 {[%clk 0:00:18]} 1-0


[Site "https://www.chess.com"]

[Event "Titled Tuesday Blitz April 25 Early 2023"]
[White "mestrefeitosa19"]
[Black "Hua, Lefong"]
[BlackFideId "2602253"]
[WhiteElo "2213"]
[BlackElo "2674"]
[Result "1-0"]
[Round "02"]
[TimeControl "180+2"]
[Date "2023.04.25"]
[WhiteClock "0:00:13"]
[BlackClock "0:00:13"]

1. c4 {[%clk 0:02:59]}  Nf6 {[%clk 0:03:00]} 2. Nc3 {[%clk 0:02:57]}  g6 {[%clk 0:03:00]} 3. Nf3 {[%clk 0:02:57]}  Bg7 {[%clk 0:03:00]} 4. e4 {[%clk 0:02:57]}  d6 {[%clk 0:03:00]} 5. d4 {[%clk 0:02:58]}  O-O {[%clk 0:03:00]} 6. Be2 {[%clk 0:02:58]}  Bg4 {[%clk 0:03:00]} 7. O-O {[%clk 0:02:59]}  Nfd7 {[%clk 0:03:00]} 8. h3 {[%clk 0:02:59]}  Bxf3 {[%clk 0:02:58]} 9. Bxf3 {[%clk 0:02:59]}  Nc6 {[%clk 0:02:51]} 10. Be3 {[%clk 0:02:55]}  e5 {[%clk 0:02:51]} 11. d5 {[%clk 0:02:52]}  Nd4 {[%clk 0:02:48]} 12. Bxd4 {[%clk 0:02:38]}  exd4 {[%clk 0:02:49]} 13. Ne2 {[%clk 0:02:39]}  d3 {[%clk 0:02:12]} 14. Qxd3 {[%clk 0:02:38]}  Bxb2 {[%clk 0:02:13]} 15. Rab1 {[%clk 0:02:37]}  Bg7 {[%clk 0:02:13]} 16. Nd4 {[%clk 0:02:28]}  a5 {[%clk 0:01:49]} 17. Bd1 {[%clk 0:02:21]}  Qf6 {[%clk 0:01:41]} 18. Nb5 {[%clk 0:02:17]}  Nc5 {[%clk 0:01:34]} 19. Qe2 {[%clk 0:02:04]}  Qe7 {[%clk 0:01:33]} 20. Re1 {[%clk 0:01:54]}  Rae8 {[%clk 0:01:29]} 21. Bc2 {[%clk 0:01:49]}  f5 {[%clk 0:01:27]} 22. f3 {[%clk 0:01:44]}  f4 {[%clk 0:01:21]} 23. Red1 {[%clk 0:01:37]}  g5 {[%clk 0:01:16]} 24. Nd4 {[%clk 0:01:35]}  Bxd4+ {[%clk 0:01:16]} 25. Rxd4 {[%clk 0:01:34]}  h5 {[%clk 0:01:13]} 26. Re1 {[%clk 0:01:33]}  Qf6 {[%clk 0:01:11]} 27. Qf2 {[%clk 0:01:19]}  Qe5 {[%clk 0:01:05]} 28. Red1 {[%clk 0:01:11]}  Re7 {[%clk 0:01:05]} 29. Bb1 {[%clk 0:01:06]}  Rg7 {[%clk 0:01:04]} 30. Qd2 {[%clk 0:00:45]}  g4 {[%clk 0:00:58]} 31. fxg4 {[%clk 0:00:38]}  hxg4 {[%clk 0:00:56]} 32. hxg4 {[%clk 0:00:36]}  Rxg4 {[%clk 0:00:52]} 33. Rf1 {[%clk 0:00:37]}  f3 {[%clk 0:00:42]} 34. Rf2 {[%clk 0:00:34]}  Rf6 {[%clk 0:00:37]} 35. Qe3 {[%clk 0:00:28]}  Rfg6 {[%clk 0:00:27]} 36. Rdd2 {[%clk 0:00:28]}  Qa1 {[%clk 0:00:20]} 37. Qe1 {[%clk 0:00:21]}  Nxe4 {[%clk 0:00:16]} 38. Rxf3 {[%clk 0:00:17]}  Nxd2 {[%clk 0:00:15]} 39. Qe8+ {[%clk 0:00:17]}  Kh7 {[%clk 0:00:14]} 40. Rf7+ {[%clk 0:00:12]}  Kh6 {[%clk 0:00:13]} 41. Qh8+ {[%clk 0:00:12]}  Kg5 {[%clk 0:00:13]} 42. Rf5# {[%clk 0:00:13]} 1-0


[Site "https://www.chess.com"]

[Event "Titled Tuesday Blitz April 25 Early 2023"]
[White "Antal, Gergely"]
[Black "Tarnowska, Aleksandra"]
[WhiteFideId "717312"]
[BlackFideId "1180967"]
[WhiteElo "2471"]
[BlackElo "1776"]
[Result "1-0"]
[Round "02"]
[TimeControl "180+2"]
[Date "2023.04.25"]
[WhiteClock "0:02:26"]
[BlackClock "0:01:22"]

1. d4 {[%clk 0:03:00]}  d5 {[%clk 0:03:00]} 2. Nc3 {[%clk 0:03:01]}  Nf6 {[%clk 0:02:59]} 3. Bg5 {[%clk 0:03:01]}  e6 {[%clk 0:02:58]} 4. Bxf6 {[%clk 0:03:01]}  Qxf6 {[%clk 0:02:56]} 5. Nf3 {[%clk 0:03:01]}  c6 {[%clk 0:02:54]} 6. e4 {[%clk 0:02:59]}  dxe4 {[%clk 0:02:44]} 7. Nxe4 {[%clk 0:03:00]}  Qd8 {[%clk 0:02:43]} 8. Bd3 {[%clk 0:02:59]}  Nd7 {[%clk 0:02:40]} 9. O-O {[%clk 0:02:58]}  Nf6 {[%clk 0:02:40]} 10. Qe2 {[%clk 0:02:53]}  Bd6 {[%clk 0:02:14]} 11. c4 {[%clk 0:02:50]}  Bc7 {[%clk 0:02:12]} 12. Rad1 {[%clk 0:02:48]}  h6 {[%clk 0:02:02]} 13. h3 {[%clk 0:02:38]}  Nh5 {[%clk 0:01:52]} 14. Ne5 {[%clk 0:02:32]}  Nf6 {[%clk 0:01:29]} 15. Qf3 {[%clk 0:02:27]}  Nxe4 {[%clk 0:01:22]} 16. Qxf7# {[%clk 0:02:26]} 1-0


[Site "https://www.chess.com"]

[Event "Titled Tuesday Blitz April 25 Early 2023"]
[White "Osiecki, Stanislaw"]
[Black "Lewicki, Miroslaw"]
[WhiteFideId "1102990"]
[BlackFideId "1113380"]
[WhiteElo "2088"]
[BlackElo "2212"]
[Result "0-1"]
[Round "02"]
[TimeControl "180+2"]
[Date "2023.04.25"]
[WhiteClock "0:00:29"]
[BlackClock "0:01:51"]

1. e4 {[%clk 0:02:51]}  c5 {[%clk 0:02:59]} 2. c3 {[%clk 0:02:47]}  d5 {[%clk 0:02:57]} 3. e5 {[%clk 0:02:47]}  d4 {[%clk 0:02:57]} 4. Bc4 {[%clk 0:02:46]}  e6 {[%clk 0:02:57]} 5. Nf3 {[%clk 0:02:41]}  Ne7 {[%clk 0:02:57]} 6. O-O {[%clk 0:02:41]}  Ng6 {[%clk 0:02:56]} 7. d3 {[%clk 0:02:41]}  Be7 {[%clk 0:02:56]} 8. Qe2 {[%clk 0:02:41]}  O-O {[%clk 0:02:56]} 9. a4 {[%clk 0:02:41]}  Nc6 {[%clk 0:02:57]} 10. Re1 {[%clk 0:02:40]}  b6 {[%clk 0:02:57]} 11. Qe4 {[%clk 0:02:38]}  Bb7 {[%clk 0:02:57]} 12. Qg4 {[%clk 0:02:38]}  Na5 {[%clk 0:02:50]} 13. Ba2 {[%clk 0:02:35]}  Ba6 {[%clk 0:02:50]} 14. c4 {[%clk 0:02:17]}  Nc6 {[%clk 0:02:49]} 15. Bd2 {[%clk 0:02:08]}  Bb7 {[%clk 0:02:47]} 16. Na3 {[%clk 0:02:02]}  a6 {[%clk 0:02:46]} 17. Nc2 {[%clk 0:02:01]}  Qc7 {[%clk 0:02:46]} 18. Qg3 {[%clk 0:02:00]}  Rae8 {[%clk 0:02:38]} 19. h4 {[%clk 0:01:59]}  f6 {[%clk 0:02:36]} 20. h5 {[%clk 0:01:49]}  Ngxe5 {[%clk 0:02:36]} 21. Nxe5 {[%clk 0:01:37]}  Nxe5 {[%clk 0:02:34]} 22. Bh6 {[%clk 0:01:34]}  Bd6 {[%clk 0:02:33]} 23. f4 {[%clk 0:01:28]}  Nc6 {[%clk 0:02:18]} 24. Qg4 {[%clk 0:01:19]}  Kh8 {[%clk 0:02:15]} 25. Rxe6 {[%clk 0:01:15]}  gxh6 {[%clk 0:02:14]} 26. Rxe8 {[%clk 0:01:14]}  Rxe8 {[%clk 0:02:15]} 27. Rf1 {[%clk 0:01:08]}  Qg7 {[%clk 0:02:08]} 28. Qxg7+ {[%clk 0:01:05]}  Kxg7 {[%clk 0:02:08]} 29. Rf2 {[%clk 0:01:02]}  Nb4 {[%clk 0:02:07]} 30. Nxb4 {[%clk 0:01:02]}  cxb4 {[%clk 0:02:07]} 31. Bb3 {[%clk 0:00:59]}  Re3 {[%clk 0:02:07]} 32. Bc2 {[%clk 0:00:59]}  Bc8 {[%clk 0:02:05]} 33. b3 {[%clk 0:00:53]}  Bf5 {[%clk 0:01:52]} 34. a5 {[%clk 0:00:43]}  bxa5 {[%clk 0:01:51]} 35. Kf1 {[%clk 0:00:39]}  Bxd3+ {[%clk 0:01:51]} 36. Bxd3 {[%clk 0:00:39]}  Rxd3 {[%clk 0:01:52]} 37. Ra2 {[%clk 0:00:39]}  Bc7 {[%clk 0:01:50]} 38. Rb2 {[%clk 0:00:38]}  Rc3 {[%clk 0:01:50]} 39. Kf2 {[%clk 0:00:37]}  Bxf4 {[%clk 0:01:51]} 40. Ra2 {[%clk 0:00:34]}  d3 {[%clk 0:01:51]} 41. g3 {[%clk 0:00:29]}  d2 {[%clk 0:01:51]} 0-1


[Site "https://www.chess.com"]

[Event "Titled Tuesday Blitz April 25 Early 2023"]
[White "Hartikainen, Jarmo"]
[Black "Tari, Aryan"]
[WhiteFideId "503134"]
[BlackFideId "1510045"]
[WhiteElo "2153"]
[BlackElo "2561"]
[Result "0-1"]
[Round "02"]
[TimeControl "180+2"]
[Date "2023.04.25"]
[WhiteClock "0:00:15"]
[BlackClock "0:01:36"]

1. e4 {[%clk 0:03:00]}  c5 {[%clk 0:02:54]} 2. c3 {[%clk 0:03:00]}  a6 {[%clk 0:02:49]} 3. d4 {[%clk 0:02:58]}  cxd4 {[%clk 0:02:50]} 4. cxd4 {[%clk 0:02:58]}  d5 {[%clk 0:02:50]} 5. e5 {[%clk 0:02:55]}  Bf5 {[%clk 0:02:49]} 6. Bd3 {[%clk 0:02:55]}  Bxd3 {[%clk 0:02:46]} 7. Qxd3 {[%clk 0:02:55]}  e6 {[%clk 0:02:46]} 8. Ne2 {[%clk 0:02:49]}  Nc6 {[%clk 0:02:46]} 9. O-O {[%clk 0:02:38]}  Nge7 {[%clk 0:02:37]} 10. f4 {[%clk 0:02:21]}  h5 {[%clk 0:02:35]} 11. Nbc3 {[%clk 0:02:10]}  Nf5 {[%clk 0:02:35]} 12. Nd1 {[%clk 0:01:52]}  Qb6 {[%clk 0:02:30]} 13. Be3 {[%clk 0:01:45]}  Be7 {[%clk 0:02:21]} 14. Rc1 {[%clk 0:01:31]}  O-O {[%clk 0:02:15]} 15. g3 {[%clk 0:01:09]}  Rfc8 {[%clk 0:02:13]} 16. h3 {[%clk 0:01:08]}  Qb5 {[%clk 0:02:10]} 17. Qd2 {[%clk 0:00:45]}  Bb4 {[%clk 0:01:47]} 18. Ndc3 {[%clk 0:00:43]}  Qb6 {[%clk 0:01:43]} 19. g4 {[%clk 0:00:41]}  hxg4 {[%clk 0:01:42]} 20. hxg4 {[%clk 0:00:40]}  Nh6 {[%clk 0:01:42]} 21. f5 {[%clk 0:00:31]}  Nxg4 {[%clk 0:01:42]} 22. f6 {[%clk 0:00:30]}  Ncxe5 {[%clk 0:01:40]} 23. Rf4 {[%clk 0:00:23]}  Nc4 {[%clk 0:01:39]} 24. Qd3 {[%clk 0:00:17]}  Ncxe3 {[%clk 0:01:36]} 25. Rxg4 {[%clk 0:00:15]}  Nxg4 {[%clk 0:01:36]} 26. Qg3 {[%clk 0:00:15]}  Nxf6 {[%clk 0:01:36]} 0-1


[Site "https://www.chess.com"]